fUST/lending_fUST_20250811
["ID","MTS","AMOUNT","RATE_DAILY","PERIOD"]
[378468747,1754877055403,-2500.0,0.00023192,2]
[378468748,1754877055413,-2500.0,0.00023192,2]
[378468749,1754877055422,-310.807869,0.00023201,15]
[378468750,1754877055433,-177.40885409,0.00023216,2]
[378468751,1754877055443,-1500.0,0.00023221,2]
[378468752,1754877055453,-728.57,0.0002325,2]
[378468753,1754877055463,-604.89,0.00023252,2]
[378468754,1754877055472,-1985.87,0.00023252,2]
[378468755,1754877055481,-2094.13,0.00023252,2]
[378468756,1754877055490,-522.0,0.00023263,2]
[378468757,1754877055500,-522.0,0.00023267,2]
[378468758,1754877055509,-500.0,0.00023288,2]
[378468759,1754877055519,-151.0,0.000233,8]
[378468760,1754877055528,-151.0,0.000233,10]
[378468761,1754877055537,-460.0,0.00023352,2]
[378468762,1754877055547,-482.24928394,0.00023352,2]
[378468763,1754877055556,-831.53,0.00023352,2]
[378468764,1754877055565,-460.0,0.00023352,2]
[378468765,1754877055575,-460.0,0.00023352,2]
[378468766,1754877055584,-460.0,0.00023352,2]
[378468767,1754877055593,-485.97,0.00023352,2]
[378468768,1754877055634,-3082.41,0.00023352,2]
[378468769,1754877055643,-460.0,0.00023352,2]
[378468770,1754877055652,-460.0,0.00023352,2]
[378468771,1754877055661,-469.57,0.00023352,2]
[378468772,1754877055671,-1030.39,0.00023352,2]
[378468773,1754877055681,-2186.46,0.00023352,2]
[378468774,1754877055690,-460.0,0.00023354,2]
[378468775,1754877055699,-1732.04,0.00023354,2]
[378468776,1754877055709,-1288.27,0.00023354,2]
[378468777,1754877055718,-534.58,0.00023356,2]
[378468778,1754877055727,-310.807869,0.00023358,15]
[378468779,1754877055736,-481.78,0.00023361,2]
[378468780,1754877055745,-1129.33,0.00023361,2]
[378468781,1754877055755,-794.13,0.00023361,2]
[378468782,1754877055766,-525.49,0.00023361,2]
[378468783,1754877055775,-460.0,0.00023361,2]
[378468784,1754877055784,-290.08385007,0.00023361,2]
[378468785,1754877055793,-460.0,0.00023361,2]
[378468786,1754877055803,-460.0,0.00023362,2]
[378468787,1754877055812,-460.0,0.00023362,2]
[378468788,1754877055821,-310.807869,0.00023364,3]
[378468789,1754877055830,-328.16867974,0.00023368,2]
[378468790,1754877055839,-199.36971708,0.00023368,2]
[378468791,1754877055848,-198.47232211,0.00023368,2]
[378468792,1754877055857,-199.92117116,0.00023368,2]
[378468793,1754877055868,-151.0,0.00023368,2]
[378468794,1754877055877,-151.0,0.00023368,2]
[378468795,1754877055887,-198.44460911,0.00023368,2]
[378468796,1754877055896,-151.47478741,0.00023368,2]
[378468797,1754877055905,-151.0,0.00023368,2]
[378468798,1754877055915,-151.59531525,0.00023368,2]
[378468799,1754877055924,-151.0,0.00023368,2]
[378468800,1754877055934,-151.0,0.00023368,2]
[378468801,1754877055943,-199.11594496,0.00023368,2]
[378468802,1754877055953,-176.386396,0.00023368,7]
[378468803,1754877055962,-176.3864,0.00023368,7]
[378468804,1754877055971,-4841.47,0.0002337,2]
[378468805,1754877055981,-1082.46,0.0002337,2]
[378468806,1754877055990,-504.85,0.00023372,2]
[378468807,1754877055999,-1875.18,0.00023373,2]
[378468808,1754877056009,-1224.19,0.00023373,2]
[378468809,1754877056018,-523.9,0.00023376,2]
[378468810,1754877056027,-1403.46,0.00023376,2]
[378468811,1754877056036,-1000.0,0.00023383,2]
[378468812,1754877056045,-1810.25,0.00023387,2]
[378468813,1754877056054,-622.66985659,0.00023394,2]
[378468814,1754877056063,-2000.0,0.00023394,2]
[378468815,1754877056073,-760.7,0.00023399,2]
[378468816,1754877056082,-1957.20514383,0.00023409,2]
[378468817,1754877056092,-600.0,0.00023422,2]
[378468818,1754877056101,-310.807869,0.0002345,10]
[378468819,1754877056110,-522.0,0.00023458,2]
[378468820,1754877056119,-600.0,0.00023473,2]
[378468821,1754877056128,-500.0,0.00023473,2]
[378468822,1754877056137,-502.26847553,0.00023473,2]
[378468823,1754877056147,-459.83092009,0.00023473,2]
[378468824,1754877056156,-500.0,0.00023473,2]
[378468825,1754877056165,-500.24729121,0.00023473,2]
[378468826,1754877056175,-500.0,0.00023473,2]
[378468827,1754877056184,-500.0,0.00023473,2]
[378468828,1754877056193,-150.0,0.00023473,2]
[378468829,1754877056202,-503.60005483,0.00023473,2]
[378468830,1754877056212,-500.0,0.00023473,2]
[378468831,1754877056222,-374.04348263,0.00023473,2]
[378468832,1754877056232,-500.0,0.00023473,2]
[378468833,1754877056242,-500.0,0.00023473,2]
[378468834,1754877056251,-185.25659566,0.00023473,2]
[378468835,1754877056261,-500.0,0.00023473,2]
[378468836,1754877056271,-529.28840175,0.00023489,2]
[378468837,1754877056280,-2117.15360698,0.00023489,2]
[378468838,1754877056289,-4758.8320201,0.00023489,2]
[378468839,1754877056298,-319.43377678,0.00023489,2]
[378468840,1754877056307,-1276.45737202,0.00023489,2]
[378468841,1754877056316,-400.8585513,0.00023497,2]
[378468842,1754877056325,-1603.4342052,0.00023497,2]
[378468843,1754877056334,-3604.11923474,0.00023497,2]
[378468844,1754877056343,-162094.02,0.000235,2]
[378468845,1754877056352,-151.0,0.000235,7]
[378468846,1754877056361,-151.0,0.000235,7]
[378468847,1754877056371,-151.0,0.000235,7]
[378468848,1754877056380,-151.0,0.000235,7]
[378468849,1754877056389,-151.0,0.000235,7]
[378468850,1754877056398,-151.0,0.000235,7]
[378468851,1754877056407,-152.986005,0.000235,7]
[378468852,1754877056415,-151.0,0.000235,7]
[378468853,1754877056424,-310.807869,0.00023515,15]
[378468854,1754877056433,-728.57,0.00023524,2]
[378468855,1754877056443,-604.89,0.00023526,2]
[378468856,1754877056452,-1985.87,0.00023526,2]
[378468857,1754877056461,-2094.13,0.00023526,2]
[378468858,1754877056471,-660.0,0.00023529,2]
[378468859,1754877056480,-522.0,0.00023538,2]
[378468860,1754877056490,-9704.86978455,0.00023561,2]
[378468861,1754877056499,-310.807869,0.000236,7]
[378468862,1754877056509,-310.807869,0.000236,8]
[378468863,1754877056518,-460.0,0.00023626,2]
[378468864,1754877056527,-831.53,0.00023626,2]
[378468865,1754877056537,-460.0,0.00023626,2]
[378468866,1754877056547,-460.0,0.00023626,2]
[378468867,1754877056556,-517.11967503,0.00023626,2]
[378468868,1754877056566,-485.97,0.00023626,2]
[378468869,1754877056576,-3082.41,0.00023626,2]
[378468870,1754877056585,-460.0,0.00023626,2]
[378468871,1754877056595,-501.32035189,0.00023626,2]
[378468872,1754877056605,-469.57,0.00023626,2]
[378468873,1754877056615,-1030.39,0.00023626,2]
[378468874,1754877056624,-1222.33514959,0.00023626,2]
[378468875,1754877056735,-964.12485041,0.00023626,2]
[378468876,1754877056745,-460.0,0.00023628,2]
[378468877,1754877056754,-1732.04,0.00023628,2]
[378468878,1754877056767,-1288.27,0.00023628,2]
[378468879,1754877056776,-534.58,0.0002363,2]
[378468880,1754877056786,-481.78,0.00023635,2]
[378468881,1754877056795,-1129.33,0.00023635,2]
[378468882,1754877056806,-794.13,0.00023635,2]
[378468883,1754877056815,-525.49,0.00023635,2]
[378468884,1754877056824,-460.0,0.00023635,2]
[378468885,1754877056833,-460.0,0.00023635,2]
[378468886,1754877056844,-460.0,0.00023636,2]
[378468887,1754877056853,-460.0,0.00023636,2]
[378468888,1754877056862,-224.39289161,0.00023642,2]
[378468889,1754877056872,-151.0,0.00023642,2]
[378468890,1754877056880,-151.0,0.00023642,2]
[378468891,1754877056889,-151.0,0.00023642,2]
[378468892,1754877056898,-4841.47,0.00023644,2]
[378468893,1754877056907,-1082.46,0.00023644,2]
[378468894,1754877056917,-504.85,0.00023646,2]
[378468895,1754877056926,-1875.18,0.00023647,2]
[378468896,1754877056936,-1224.19,0.00023647,2]
[378468897,1754877056945,-523.9,0.0002365,2]
[378468898,1754877056954,-1403.46,0.0002365,2]
[378468899,1754877056963,-1810.25,0.00023661,2]
[378468900,1754877056972,-600.0,0.00023661,2]
[378468901,1754877056982,-587.0,0.00023669,2]
[378468902,1754877056991,-2276.0,0.0002367,2]
[378468903,1754877057000,-310.807869,0.00023672,15]
[378468904,1754877057010,-760.7,0.00023699,3]
[378468905,1754877057019,-3000.0,0.0002374,2]
[378468906,1754877057029,-3000.0,0.0002374,2]
[378468907,1754877057039,-310.807869,0.0002374,2]
[378468908,1754877057048,-2000.0,0.00023769,2]
[378468909,1754877057058,-310.807869,0.00023772,3]
[378468910,1754877057067,-728.57,0.00023798,2]
[378468911,1754877057076,-310.807869,0.000238,10]
[378468912,1754877057086,-604.89,0.000238,2]
[378468913,1754877057095,-1985.87,0.000238,2]
[378468914,1754877057105,-2094.13,0.000238,2]
[378468915,1754877057114,-4674.64634543,0.00023809,2]
[378468916,1754877057123,-522.0,0.00023822,2]
[378468917,1754877057133,-500.0,0.00023873,2]
[378468918,1754877057142,-310.807869,0.00023875,8]
[378468919,1754877057152,-3454.54216843,0.00023884,2]
[378468920,1754877057162,-151.0,0.00023884,7]
[378468921,1754877057171,-151.0,0.00023884,7]
[378468922,1754877057181,-151.0,0.00023884,7]
[378468923,1754877057191,-151.0,0.00023884,7]
[378468924,1754877057200,-151.0,0.00023884,7]
[378468925,1754877057210,-151.0,0.00023884,7]
[378468926,1754877057220,-151.0,0.00023884,7]
[378468927,1754877057230,-151.0,0.00023884,7]
[378468928,1754877057241,-151.0,0.00023884,7]
[378468929,1754877057250,-151.0,0.00023884,7]
[378468930,1754877057260,-151.0,0.00023884,7]
[378468931,1754877057269,-230.043,0.00023884,7]
[378468932,1754877057280,-151.0,0.00023884,7]
[378468933,1754877057289,-151.0,0.00023884,7]
[378468934,1754877057299,-196.495851,0.00023884,7]
[378468935,1754877057310,-196.495851,0.00023884,7]
[378468936,1754877057320,-160521.1885221,0.00023884,2]
[378468937,1754877057330,-1601.71446871,0.00023884,2]
[378468938,1754877057339,-151.0,0.00023884,7]
[378468939,1754877057349,-151.0,0.00023884,7]
[378468940,1754877057358,-151.0,0.00023884,7]
[378468941,1754877057368,-235.470089,0.00023884,7]
[378468942,1754877057378,-151.0,0.00023884,7]
[378468943,1754877057388,-151.0,0.00023884,7]
[378468944,1754877057398,-151.0,0.00023884,7]
[378468945,1754877057408,-3000.0,0.00023886,2]
[378468946,1754877057419,-28408.68,0.0002389,5]
[378468947,1754877057429,-235398.9776978,0.0002389,7]
[378468948,1754877057439,-151.996616,0.0002389,7]
[378468949,1754877057449,-151.0,0.0002389,7]
[378468950,1754877057459,-151.0,0.0002389,7]
[378468951,1754877057470,-151.0,0.0002389,7]
[378468952,1754877057480,-151.0,0.0002389,7]
[378468953,1754877057490,-151.0,0.0002389,7]
[378468954,1754877057499,-151.0,0.0002389,7]
[378468955,1754877057509,-151.0,0.0002389,7]
[378468956,1754877057521,-151.0,0.0002389,7]
[378468957,1754877057531,-151.0,0.0002389,7]
[378468958,1754877057540,-151.0,0.0002389,7]
[378468959,1754877057550,-151.0,0.0002389,7]
[378468960,1754877057560,-151.0,0.0002389,7]
[378468961,1754877057570,-151.0,0.0002389,7]
[378468962,1754877057586,-170.604742,0.0002389,7]
[378468963,1754877057596,-196.495851,0.0002389,7]
[378468964,1754877057605,-196.495851,0.0002389,7]
[378468965,1754877057615,-151.0,0.0002389,7]
[378468966,1754877057625,-151.0,0.0002389,7]
[378468967,1754877057635,-152.468289,0.0002389,7]
[378468968,1754877057645,-151.0,0.0002389,7]
[378468969,1754877057655,-189.997854,0.0002389,7]
[378468970,1754877057665,-151.0,0.0002389,7]
[378468971,1754877057676,-151.0,0.0002389,7]
[378468972,1754877057686,-151.0,0.0002389,7]
[378468973,1754877057696,-151.0,0.0002389,7]
[378468974,1754877057710,-177.750626,0.0002389,7]
[378468975,1754877057721,-151.0,0.0002389,7]
[378468976,1754877057731,-151.0,0.000239,7]
[378468977,1754877057741,-151.0,0.000239,7]
[378468978,1754877057751,-151.0,0.000239,7]
[378468979,1754877057762,-151.0,0.000239,7]
[378468980,1754877057773,-151.0,0.000239,7]
[378468981,1754877057782,-151.0,0.000239,7]
[378468982,1754877057792,-151.0,0.000239,7]
[378468983,1754877057802,-151.0,0.000239,7]
[378468984,1754877057811,-250.750802,0.000239,7]
[378468985,1754877057826,-151.0,0.000239,7]
[378468986,1754877057838,-151.0,0.000239,7]
[378468987,1754877057847,-151.0,0.000239,7]
[378468988,1754877057857,-151.0,0.000239,7]
[378468989,1754877057867,-185.11283,0.000239,7]
[378468990,1754877057878,-151.0,0.000239,7]
[378468991,1754877057887,-151.0,0.000239,7]
[378468992,1754877057897,-151.0,0.000239,7]
[378468993,1754877057906,-151.0,0.000239,7]
[378468994,1754877057916,-151.0,0.000239,7]
[378468995,1754877057926,-151.0,0.000239,7]
[378468996,1754877057935,-151.0,0.000239,7]
[378468997,1754877057945,-240.353446,0.000239,7]
[378468998,1754877057956,-151.0,0.000239,7]
[378468999,1754877057966,-151.0,0.000239,7]
[378469000,1754877057975,-151.0,0.000239,7]
[378469001,1754877057985,-151.0,0.000239,7]
[378469002,1754877057995,-151.0,0.000239,7]
[378469003,1754877058005,-151.0,0.000239,7]
[378469004,1754877058014,-189.934974,0.000239,7]
[378469005,1754877058023,-151.0,0.000239,7]
[378469006,1754877058033,-151.0,0.000239,7]
[378469007,1754877058042,-151.0,0.000239,7]
[378469008,1754877058052,-151.0,0.000239,7]
[378469009,1754877058061,-151.0,0.000239,7]
[378469010,1754877058070,-151.0,0.000239,7]
[378469011,1754877058080,-151.0,0.000239,7]
[378469012,1754877058090,-151.0,0.000239,7]
[378469013,1754877058099,-151.0,0.000239,7]
[378469014,1754877058108,-151.0,0.000239,7]
[378469015,1754877058118,-151.0,0.000239,7]
[378469016,1754877058127,-151.0,0.000239,7]
[378469017,1754877058137,-151.0,0.000239,7]
[378469018,1754877058146,-165.656056,0.000239,7]
[378469019,1754877058155,-461.62346162,0.000239,7]
[378469020,1754877058165,-460.0,0.000239,2]
[378469021,1754877058175,-831.53,0.000239,2]
[378469022,1754877058184,-160.0,0.000239,7]
[378469023,1754877058195,-460.0,0.000239,2]
[378469024,1754877058205,-460.0,0.000239,2]
[378469025,1754877058214,-485.97,0.000239,2]
[378469026,1754877058223,-3082.41,0.000239,2]
[378469027,1754877058233,-460.0,0.000239,2]
[378469028,1754877058242,-312.16666667,0.000239,7]
[378469029,1754877058252,-215.44987349,0.000239,7]
[378469030,1754877058263,-469.57,0.000239,2]
[378469031,1754877058272,-527.86640923,0.000239,7]
[378469032,1754877058282,-600.0,0.000239,2]
[378469033,1754877058292,-1030.39,0.000239,2]
[378469034,1754877058302,-2186.46,0.000239,2]
[378469035,1754877058312,-460.0,0.00023902,2]
[378469036,1754877058321,-1732.04,0.00023902,2]
[378469037,1754877058333,-1288.27,0.00023902,2]
[378469038,1754877058342,-534.58,0.00023904,2]
[378469039,1754877058354,-481.78,0.00023909,2]
[378469040,1754877058364,-1129.33,0.00023909,2]
[378469041,1754877058373,-794.13,0.00023909,2]
[378469042,1754877058383,-525.49,0.00023909,2]
[378469043,1754877058393,-460.0,0.00023909,2]
[378469044,1754877058402,-460.0,0.00023909,2]
[378469045,1754877058412,-460.0,0.0002391,2]
[378469046,1754877058421,-460.0,0.0002391,2]
[378469047,1754877058431,-151.0,0.00023916,2]
[378469048,1754877058441,-151.0,0.00023916,2]
[378469049,1754877058451,-155.84493696,0.00023916,2]
[378469050,1754877058460,-4841.47,0.00023918,2]
[378469051,1754877058470,-1082.46,0.00023918,2]
[378469052,1754877058479,-504.85,0.0002392,2]
[378469053,1754877058489,-1875.18,0.00023921,2]
[378469054,1754877058499,-1224.19,0.00023921,2]
[378469055,1754877058509,-523.9,0.00023924,2]
[378469056,1754877058519,-1403.46,0.00023924,2]
[378469057,1754877058528,-310.807869,0.00023925,7]
[378469058,1754877058537,-1810.25,0.00023935,2]
[378469059,1754877058548,-2500.0,0.00023942,2]
[378469060,1754877058559,-150.0,0.00023973,2]
[378469061,1754877058570,-2000.0,0.00023998,2]
[378469062,1754877058579,-760.7,0.00023999,3]
[378469063,1754877058591,-1700.03605386,0.00024,2]
[378469064,1754877058601,-323.08855856,0.00024,2]
[378469065,1754877058610,-455.63130091,0.00024,2]
[378469066,1754877058622,-1000.0,0.00024,24]
[378469067,1754877058633,-181.25479019,0.00024,7]
[378469068,1754877058643,-77106.11968602,0.00024,2]
[378469069,1754877058653,-151.0,0.00024,7]
[378469070,1754877058662,-151.0,0.00024,7]
[378469071,1754877058672,-196.495851,0.00024,7]
[378469072,1754877058682,-196.495846,0.00024,7]
[378469073,1754877058692,-20000.0,0.00024,7]
[378469074,1754877058702,-216.64838636,0.00024,7]
[378469075,1754877058716,-160.0,0.00024,7]
[378469076,1754877058728,-231.96268195,0.00024,7]
[378469077,1754877058738,-160.0,0.00024,7]
[378469078,1754877058747,-160.0,0.00024,7]
[378469079,1754877058757,-160.0,0.00024,7]
[378469080,1754877058770,-843.0869304,0.00024,7]
[378469081,1754877058780,-160.0,0.00024,7]
[378469082,1754877058791,-160.0,0.00024,7]
[378469083,1754877058802,-1200.0,0.00024021,2]
[378469084,1754877058814,-502.47144243,0.00024021,2]
[378469085,1754877058824,-607.64842689,0.00024021,2]
[378469086,1754877058834,-250.0,0.00024021,2]
[378469087,1754877058846,-1000.0,0.00024021,2]
[378469088,1754877058857,-1000.0,0.00024021,2]
[378469089,1754877058866,-1000.0,0.00024021,2]
[378469090,1754877058876,-1000.0,0.00024021,2]
[378469091,1754877058886,-1000.0,0.00024021,2]
[378469092,1754877058895,-150.0,0.00024051,2]
[378469093,1754877058905,-2200.0,0.00024052,2]
[378469094,1754877058916,-500.0,0.00024052,2]
[378469095,1754877058926,-728.57,0.00024072,2]
[378469096,1754877058936,-604.89,0.00024074,2]
[378469097,1754877058946,-1985.87,0.00024074,2]
[378469098,1754877058956,-2094.13,0.00024074,2]
[378469099,1754877058966,-760.0,0.00024077,2]
[378469100,1754877058976,-3000.0,0.00024098,2]
[378469101,1754877058986,-850.71838349,0.00024139,2]
[378469102,1754877059134,-310.807869,0.0002415,10]
[378469103,1754877059145,-310.807869,0.0002415,8]
[378469104,1754877059154,-170.0,0.00024164,7]
[378469105,1754877059164,-460.0,0.00024174,2]
[378469106,1754877059175,-831.53,0.00024174,2]
[378469107,1754877059184,-607.40476607,0.00024174,2]
[378469108,1754877059193,-460.0,0.00024174,2]
[378469109,1754877059203,-485.97,0.00024174,2]
[378469110,1754877059212,-3082.41,0.00024174,2]
[378469111,1754877059222,-460.0,0.00024174,2]
[378469112,1754877059231,-469.57,0.00024174,2]
[378469113,1754877059241,-1030.39,0.00024174,2]
[378469114,1754877059251,-2186.46,0.00024174,2]
[378469115,1754877059261,-421.3077696,0.00024176,2]
[378469116,1754877059270,-1732.04,0.00024176,2]
[378469117,1754877059280,-1288.27,0.00024176,2]
[378469118,1754877059290,-534.58,0.00024178,2]
[378469119,1754877059299,-166.211836,0.0002418,3]
[378469120,1754877059309,-310.807869,0.0002418,3]
[378469121,1754877059318,-156.687419,0.0002418,3]
[378469122,1754877059328,-160.218639,0.0002418,3]
[378469123,1754877059337,-481.78,0.00024183,2]
[378469124,1754877059347,-1129.33,0.00024183,2]
[378469125,1754877059356,-794.13,0.00024183,2]
[378469126,1754877059366,-525.49,0.00024183,2]
[378469127,1754877059375,-326.62246396,0.00024183,2]
[378469128,1754877059384,-460.0,0.00024183,2]
[378469129,1754877059394,-460.0,0.00024184,2]
[378469130,1754877059403,-487.41084189,0.00024184,2]
[378469131,1754877059412,-3000.0,0.00024188,2]
[378469132,1754877059423,-151.0,0.0002419,2]
[378469133,1754877059432,-151.0,0.0002419,2]
[378469134,1754877059441,-4841.47,0.00024192,2]
[378469135,1754877059450,-1082.46,0.00024192,2]
[378469136,1754877059460,-504.85,0.00024194,2]
[378469137,1754877059470,-1875.18,0.00024195,2]
[378469138,1754877059479,-1224.19,0.00024195,2]
[378469139,1754877059489,-523.9,0.00024198,2]
[378469140,1754877059498,-1403.46,0.00024198,2]
[378469141,1754877059508,-1810.25,0.00024209,2]
[378469142,1754877059517,-310.807869,0.0002425,7]
[378469143,1754877059527,-168.0,0.00024274,12]
[378469144,1754877059536,-4000.0,0.00024282,2]
[378469145,1754877059545,-3500.0,0.00024288,2]
[378469146,1754877059555,-3500.0,0.00024288,2]
[378469147,1754877059564,-760.7,0.00024299,3]
[378469148,1754877059574,-522.0,0.00024303,2]
[378469149,1754877059584,-2500.0,0.00024317,2]
[378469150,1754877059593,-151.0,0.00024317,7]
[378469151,1754877059603,-151.0,0.00024321,7]
[378469152,1754877059612,-728.57,0.00024346,2]
[378469153,1754877059622,-604.89,0.00024348,2]
[378469154,1754877059631,-1985.87,0.00024348,2]
[378469155,1754877059641,-2094.13,0.00024348,2]
[378469156,1754877059650,-500.1,0.0002435,2]
[378469157,1754877059660,-1352.83,0.00024358,2]
[378469158,1754877059670,-310.807869,0.00024365,2]
[378469159,1754877059680,-151.0,0.00024375,7]
[378469160,1754877059690,-5000.0,0.00024388,2]
[378469161,1754877059699,-151.0,0.00024388,7]
[378469162,1754877059709,-151.0,0.00024388,7]
[378469163,1754877059718,-151.0,0.00024388,7]
[378469164,1754877059727,-1000.0,0.00024421,2]
[378469165,1754877059737,-151.0,0.00024421,7]
[378469166,1754877059749,-151.0,0.00024421,7]
[378469167,1754877059758,-151.0,0.00024421,7]
[378469168,1754877059770,-151.0,0.00024421,7]
[378469169,1754877059780,-256.804595,0.00024421,7]
[378469170,1754877059789,-310.807869,0.00024425,8]
[378469171,1754877059798,-4000.0,0.00024436,4]
[378469172,1754877059807,-460.0,0.00024448,2]
[378469173,1754877059816,-831.53,0.00024448,2]
[378469174,1754877059826,-460.0,0.00024448,2]
[378469175,1754877059835,-485.97,0.00024448,2]
[378469176,1754877059844,-3082.41,0.00024448,2]
[378469177,1754877059853,-460.0,0.00024448,2]
[378469178,1754877059861,-469.57,0.00024448,2]
[378469179,1754877059871,-1030.39,0.00024448,2]
[378469180,1754877059880,-2186.46,0.00024448,2]
[378469181,1754877059889,-1732.04,0.0002445,2]
[378469182,1754877059899,-1288.27,0.0002445,2]
[378469183,1754877059908,-534.58,0.00024452,2]
[378469184,1754877059917,-481.78,0.00024457,2]
[378469185,1754877059927,-1129.33,0.00024457,2]
[378469186,1754877059936,-794.13,0.00024457,2]
[378469187,1754877059946,-525.49,0.00024457,2]
[378469188,1754877059955,-460.0,0.00024457,2]
[378469189,1754877059964,-460.0,0.00024458,2]
[378469190,1754877059973,-268.77723424,0.00024464,2]
[378469191,1754877059982,-246.33228902,0.00024464,2]
[378469192,1754877059991,-4841.47,0.00024466,2]
[378469193,1754877060000,-1082.46,0.00024466,2]
[378469194,1754877060009,-504.85,0.00024468,2]
[378469195,1754877060019,-1875.18,0.00024469,2]
[378469196,1754877060028,-1224.19,0.00024469,2]
[378469197,1754877060038,-523.9,0.00024472,2]
[378469198,1754877060047,-1403.46,0.00024472,2]
[378469199,1754877060057,-152.04038189,0.00024473,2]
[378469200,1754877060067,-1500.0,0.00024479,2]
[378469201,1754877060077,-151.0,0.00024483,7]
[378469202,1754877060086,-1810.25,0.00024483,2]
[378469203,1754877060096,-1724.06572789,0.0002449,2]
[378469204,1754877060105,-659.4625897,0.000245,2]
[378469205,1754877060114,-7563.09753965,0.000245,2]
[378469206,1754877060124,-157.0,0.000245,5]
[378469207,1754877060133,-151.0,0.000245,7]
[378469208,1754877060142,-310.807869,0.000245,10]
[378469209,1754877060151,-300.0,0.00024521,2]
[378469210,1754877060161,-1800.0,0.00024568,2]
[378469211,1754877060170,-350.0,0.00024568,2]
[378469212,1754877060179,-1500.0,0.00024568,2]
[378469213,1754877060188,-1500.0,0.00024568,2]
[378469214,1754877060198,-1500.0,0.00024568,2]
[378469215,1754877060207,-1508.84191194,0.00024568,2]
[378469216,1754877060216,-1500.0,0.00024568,2]
[378469217,1754877060226,-310.807869,0.00024575,7]
[378469218,1754877060235,-9787.89,0.000246,7]
[378469219,1754877060244,-760.7,0.000246,3]
[378469220,1754877060253,-728.57,0.0002462,2]
[378469221,1754877060264,-604.89,0.00024622,2]
[378469222,1754877060273,-1985.87,0.00024622,2]
[378469223,1754877060282,-2094.13,0.00024622,2]
[378469224,1754877060292,-860.0,0.00024625,2]
[378469225,1754877060301,-468187.66070452,0.00024649,5]
[378469226,1754877060310,-151.0,0.00024649,7]
[378469227,1754877060319,-151.0,0.00024649,7]
[378469228,1754877060328,-151.0,0.00024649,7]
[378469229,1754877060338,-151.0,0.00024649,7]
[378469230,1754877060347,-151.0,0.00024649,7]
[378469231,1754877060356,-285.494688,0.00024649,7]
[378469232,1754877060365,-151.0,0.00024649,7]
[378469233,1754877060375,-151.0,0.00024649,7]
[378469234,1754877060384,-151.0,0.00024649,7]
[378469235,1754877060394,-154.046352,0.00024649,7]
[378469236,1754877060403,-151.0,0.00024649,7]
[378469237,1754877060412,-151.0,0.00024649,7]
[378469238,1754877060422,-151.0,0.00024649,7]
[378469239,1754877060431,-151.0,0.00024649,7]
[378469240,1754877060441,-222509.84352427,0.0002465,2]
[378469241,1754877060450,-152.641935,0.0002465,7]
[378469242,1754877060460,-151.0,0.0002465,7]
[378469243,1754877060469,-151.0,0.0002465,7]
[378469244,1754877060478,-151.0,0.0002465,7]
[378469245,1754877060487,-151.0,0.0002465,7]
[378469246,1754877060496,-151.0,0.0002465,7]